fUSD/lending_fUSD_20260202
["ID","MTS","AMOUNT","RATE_DAILY","PERIOD"]
[404351319,1770071443801,-639.93,0.00013698,2]
[404351320,1770071443810,-639.93,0.00013698,2]
[404351321,1770071443819,-639.93,0.00013698,2]
[404351322,1770071443829,-639.93,0.00013698,2]
[404351323,1770071443839,-639.93,0.00013698,2]
[404351324,1770071443848,-639.93,0.00013698,2]
[404351325,1770071443860,-639.93,0.00013698,2]
[404351326,1770071443870,-639.93,0.00013698,2]
[404351327,1770071443879,-639.93,0.00013698,2]
[404351328,1770071443889,-640.02279054,0.00013698,2]
[404351329,1770071443899,-554.70150285,0.00013698,2]
[404351330,1770071443909,-596.97,0.00013698,2]
[404351331,1770071443918,-596.97,0.00013698,2]
[404351332,1770071443928,-596.97,0.00013698,2]
[404351333,1770071443937,-596.97,0.00013698,2]
[404351334,1770071443946,-596.97,0.00013698,2]
[404351335,1770071443956,-596.97,0.00013698,2]
[404351336,1770071443965,-596.97,0.00013698,2]
[404351337,1770071443975,-596.97,0.00013698,2]
[404351338,1770071443984,-596.97,0.00013698,2]
[404351339,1770071443993,-596.97,0.00013698,2]
[404351340,1770071444003,-596.97,0.00013698,2]
[404351341,1770071444012,-596.97,0.00013698,2]
[404351342,1770071444023,-596.97,0.00013698,2]
[404351343,1770071444032,-596.97,0.00013698,2]
[404351344,1770071444042,-596.97,0.00013698,2]
[404351345,1770071444054,-596.97,0.00013698,2]
[404351346,1770071444064,-596.97,0.00013698,2]
[404351347,1770071444074,-596.97,0.00013698,2]
[404351348,1770071444083,-596.97,0.00013698,2]
[404351349,1770071444093,-596.97,0.00013698,2]
[404351350,1770071444102,-596.97,0.00013698,2]
[404351351,1770071444112,-596.97,0.00013698,2]
[404351352,1770071444122,-596.97,0.00013698,2]
[404351353,1770071444131,-597.07967228,0.00013698,2]
[404351354,1770071444141,-500.0,0.00013698,2]
[404351355,1770071444151,-500.0,0.00013698,2]
[404351356,1770071444160,-500.0,0.00013698,2]
[404351357,1770071444169,-500.0,0.00013698,2]
[404351358,1770071444180,-500.0,0.00013698,2]
[404351359,1770071444189,-500.0,0.00013698,2]
[404351360,1770071444199,-500.0,0.00013698,2]
[404351361,1770071444208,-339.58910113,0.00013698,2]
[404351362,1770071444217,-516.48312948,0.00013698,2]
[404351363,1770071444227,-1675.29,0.00013698,2]
[404351364,1770071444236,-1675.29,0.00013698,2]
[404351365,1770071444248,-1675.29,0.00013698,2]
[404351366,1770071444257,-1675.29,0.00013698,2]
[404351367,1770071444267,-1675.29,0.00013698,2]
[404351368,1770071444276,-1675.29,0.00013698,2]
[404351369,1770071444285,-1675.29,0.00013698,2]
[404351370,1770071444295,-1675.29,0.00013698,2]
[404351371,1770071444304,-1675.29,0.00013698,2]
[404351372,1770071444314,-1675.29,0.00013698,2]
[404351373,1770071444323,-1675.29,0.00013698,2]
[404351374,1770071444332,-1675.29,0.00013698,2]
[404351375,1770071444342,-1675.29,0.00013698,2]
[404351376,1770071444351,-1675.29,0.00013698,2]
[404351377,1770071444360,-1675.29,0.00013698,2]
[404351378,1770071444388,-1675.29,0.00013698,2]
[404351379,1770071444397,-1675.29,0.00013698,2]
[404351380,1770071444406,-1675.29,0.00013698,2]
[404351381,1770071444415,-1675.29,0.00013698,2]
[404351382,1770071444424,-1675.29,0.00013698,2]
[404351383,1770071444433,-1675.29,0.00013698,2]
[404351384,1770071444443,-1675.29,0.00013698,2]
[404351385,1770071444452,-1675.29,0.00013698,2]
[404351386,1770071444461,-1675.46797138,0.00013698,2]
[404351387,1770071444470,-500.0,0.00013698,2]
[404351388,1770071444479,-500.0,0.00013698,2]
[404351389,1770071444488,-500.0,0.00013698,2]
[404351390,1770071444498,-500.0,0.00013698,2]
[404351391,1770071444507,-500.0,0.00013698,2]
[404351392,1770071444516,-614.04732503,0.00013698,2]
[404351393,1770071444525,-500.0,0.00013698,2]
[404351394,1770071444534,-500.0,0.00013698,2]
[404351395,1770071444543,-500.0,0.00013698,2]
[404351396,1770071444552,-500.0,0.00013698,2]
[404351397,1770071444562,-500.0,0.00013698,2]
[404351398,1770071444571,-500.0,0.00013698,2]
[404351399,1770071444581,-500.0,0.00013698,2]
[404351400,1770071444592,-500.0,0.00013698,2]
[404351401,1770071444601,-500.0,0.00013698,2]
[404351402,1770071444610,-500.0,0.00013698,2]
[404351403,1770071444619,-500.0,0.00013698,2]
[404351404,1770071444629,-500.0,0.00013698,2]
[404351405,1770071444637,-500.0,0.00013698,2]
[404351406,1770071444652,-500.0,0.00013698,2]
[404351407,1770071444666,-500.0,0.00013698,2]
[404351408,1770071444677,-500.0,0.00013698,2]
[404351409,1770071444687,-500.0,0.00013698,2]
[404351410,1770071444696,-400.99392015,0.00013698,2]
[404351411,1770071444706,-500.0,0.00013698,2]
[404351412,1770071444715,-500.0,0.00013698,2]
[404351413,1770071444725,-500.0,0.00013698,2]
[404351414,1770071444735,-500.0,0.00013698,2]
[404351415,1770071444745,-500.0,0.00013698,2]
[404351416,1770071444754,-500.0,0.00013698,2]
[404351417,1770071444764,-500.0,0.00013698,2]
[404351418,1770071444774,-500.0,0.00013698,2]
[404351419,1770071444784,-345.2209737,0.00013698,2]
[404351420,1770071444793,-500.0,0.00013698,2]
[404351421,1770071444803,-500.0,0.00013698,2]
[404351422,1770071444813,-500.0,0.00013698,2]
[404351423,1770071444822,-500.0,0.00013698,2]
[404351424,1770071444832,-500.0,0.00013698,2]
[404351425,1770071444841,-500.0,0.00013698,2]
[404351426,1770071444851,-500.0,0.00013698,2]
[404351427,1770071444860,-500.0,0.00013698,2]
[404351428,1770071444871,-500.0,0.00013698,2]
[404351429,1770071444880,-500.0,0.00013698,2]
[404351430,1770071444890,-500.0,0.00013698,2]
[404351431,1770071444899,-500.0,0.00013698,2]
[404351432,1770071444909,-500.0,0.00013698,2]
[404351433,1770071444919,-500.0,0.00013698,2]
[404351434,1770071444929,-500.0,0.00013698,2]
[404351435,1770071444939,-500.0,0.00013698,2]
[404351436,1770071444948,-408.83165373,0.00013698,2]
[404351437,1770071444958,-700.51,0.00013698,2]
[404351438,1770071444967,-700.51,0.00013698,2]
[404351439,1770071444977,-700.51,0.00013698,2]
[404351440,1770071444986,-700.51,0.00013698,2]
[404351441,1770071444996,-700.51,0.00013698,2]
[404351442,1770071445005,-700.51,0.00013698,2]
[404351443,1770071445015,-700.51,0.00013698,2]
[404351444,1770071445025,-700.51,0.00013698,2]
[404351445,1770071445034,-700.51,0.00013698,2]
[404351446,1770071445043,-700.51,0.00013698,2]
[404351447,1770071445053,-700.51,0.00013698,2]
[404351448,1770071445062,-700.51,0.00013698,2]
[404351449,1770071445072,-700.51,0.00013698,2]
[404351450,1770071445081,-700.51,0.00013698,2]
[404351451,1770071445090,-700.51,0.00013698,2]
[404351452,1770071445100,-700.51,0.00013698,2]
[404351453,1770071445110,-700.51,0.00013698,2]
[404351454,1770071445119,-700.51,0.00013698,2]
[404351455,1770071445129,-700.51,0.00013698,2]
[404351457,1770071445138,-700.51,0.00013698,2]
[404351458,1770071445147,-700.51,0.00013698,2]
[404351460,1770071445156,-700.51,0.00013698,2]
[404351461,1770071445165,-700.51,0.00013698,2]
[404351462,1770071445176,-700.52484432,0.00013698,2]
[404351463,1770071445186,-500.0,0.00013698,2]
[404351464,1770071445197,-500.0,0.00013698,2]
[404351465,1770071445207,-500.0,0.00013698,2]
[404351466,1770071445218,-500.0,0.00013698,2]
[404351467,1770071445230,-500.0,0.00013698,2]
[404351468,1770071445240,-500.0,0.00013698,2]
[404351469,1770071445250,-500.0,0.00013698,2]
[404351470,1770071445260,-500.0,0.00013698,2]
[404351471,1770071445271,-500.0,0.00013698,2]
[404351472,1770071445282,-500.0,0.00013698,2]
[404351473,1770071445291,-500.0,0.00013698,2]
[404351474,1770071445301,-500.0,0.00013698,2]
[404351475,1770071445310,-500.0,0.00013698,2]
[404351476,1770071445322,-500.0,0.00013698,2]
[404351477,1770071445332,-500.0,0.00013698,2]
[404351478,1770071445341,-324.98118221,0.00013698,2]
[404351479,1770071445351,-1355.09,0.00013698,2]
[404351480,1770071445360,-1355.09,0.00013698,2]
[404351481,1770071445369,-1355.09,0.00013698,2]
[404351482,1770071445378,-1355.09,0.00013698,2]
[404351483,1770071445387,-1355.09,0.00013698,2]
[404351484,1770071445397,-1355.09,0.00013698,2]
[404351485,1770071445407,-1355.09,0.00013698,2]
[404351486,1770071445416,-1355.09,0.00013698,2]
[404351487,1770071445425,-1355.09,0.00013698,2]
[404351488,1770071445435,-1355.09,0.00013698,2]
[404351489,1770071445445,-1355.09,0.00013698,2]
[404351490,1770071445454,-1355.09,0.00013698,2]
[404351491,1770071445463,-1355.09,0.00013698,2]
[404351492,1770071445472,-1355.09,0.00013698,2]
[404351493,1770071445481,-1355.09,0.00013698,2]
[404351494,1770071445491,-1355.09,0.00013698,2]
[404351495,1770071445500,-1355.09,0.00013698,2]
[404351496,1770071445509,-1355.09,0.00013698,2]
[404351497,1770071445519,-1355.09,0.00013698,2]
[404351498,1770071445528,-1355.09,0.00013698,2]
[404351499,1770071445537,-1355.09,0.00013698,2]
[404351500,1770071445546,-1355.09,0.00013698,2]
[404351501,1770071445555,-1355.09,0.00013698,2]
[404351502,1770071445566,-1355.19124694,0.00013698,2]
[404351503,1770071445577,-520.9392261,0.00013698,2]
[404351504,1770071445591,-500.0,0.00013698,2]
[404351505,1770071445601,-500.0,0.00013698,2]
[404351506,1770071445610,-500.0,0.00013698,2]
[404351507,1770071445620,-500.0,0.00013698,2]
[404351508,1770071445630,-500.0,0.00013698,2]
[404351509,1770071445639,-500.0,0.00013698,2]
[404351510,1770071445648,-613.19482535,0.00013698,2]
[404351511,1770071445660,-151.0,0.00013698,2]
[404351512,1770071445669,-2289.027838,0.00013698,2]
[404351513,1770071445678,-500.0,0.00013698,2]
[404351514,1770071445687,-500.0,0.00013698,2]
[404351515,1770071445696,-151.0,0.00013698,2]
[404351516,1770071445706,-500.0,0.00013698,2]
[404351517,1770071445715,-500.0,0.00013698,2]
[404351518,1770071445724,-2289.027838,0.00013698,2]
[404351519,1770071445735,-500.0,0.00013698,2]
[404351520,1770071445744,-500.0,0.00013698,2]
[404351521,1770071445754,-634.026843,0.00013698,2]
[404351522,1770071445763,-172.30032513,0.00013698,2]
[404351523,1770071445774,-151.0,0.00013698,2]
[404351524,1770071445784,-2289.027838,0.00013698,2]
[404351525,1770071445793,-634.026843,0.00013698,2]
[404351526,1770071445802,-151.0,0.00013698,2]
[404351529,1770071445898,-2289.027838,0.00013698,2]
[404351530,1770071445907,-634.026843,0.00013698,2]
[404351531,1770071445916,-634.026843,0.00013698,2]
[404351532,1770071445926,-151.0,0.00013698,2]
[404351533,1770071445936,-635.64,0.00013698,2]
[404351534,1770071445946,-635.64,0.00013698,2]
[404351535,1770071445955,-635.64,0.00013698,2]
[404351536,1770071445964,-635.64,0.00013698,2]
[404351537,1770071445974,-635.64,0.00013698,2]
[404351538,1770071445983,-635.64,0.00013698,2]
[404351539,1770071445992,-635.64,0.00013698,2]
[404351540,1770071446002,-635.64,0.00013698,2]
[404351541,1770071446012,-635.64,0.00013698,2]
[404351542,1770071446021,-635.64,0.00013698,2]
[404351543,1770071446032,-635.64,0.00013698,2]
[404351544,1770071446041,-635.64,0.00013698,2]
[404351545,1770071446051,-635.64,0.00013698,2]
[404351546,1770071446060,-635.64,0.00013698,2]
[404351547,1770071446070,-635.64,0.00013698,2]
[404351548,1770071446079,-635.64,0.00013698,2]
[404351549,1770071446089,-635.64,0.00013698,2]
[404351550,1770071446101,-635.64,0.00013698,2]
[404351551,1770071446111,-635.64,0.00013698,2]
[404351552,1770071446120,-635.64,0.00013698,2]
[404351553,1770071446130,-635.64,0.00013698,2]
[404351554,1770071446140,-635.64,0.00013698,2]
[404351555,1770071446149,-635.64,0.00013698,2]
[404351556,1770071446159,-635.83897736,0.00013698,2]
[404351557,1770071446167,-540.92,0.00013698,2]
[404351558,1770071446177,-540.92,0.00013698,2]
[404351559,1770071446186,-540.92,0.00013698,2]
[404351560,1770071446195,-540.92,0.00013698,2]
[404351561,1770071446203,-540.92,0.00013698,2]
[404351562,1770071446213,-540.92,0.00013698,2]
[404351563,1770071446221,-540.92,0.00013698,2]
[404351564,1770071446230,-540.92,0.00013698,2]
[404351565,1770071446239,-540.92,0.00013698,2]
[404351566,1770071446248,-540.92,0.00013698,2]
[404351567,1770071446257,-540.92,0.00013698,2]
[404351568,1770071446266,-540.92,0.00013698,2]
[404351569,1770071446275,-540.92,0.00013698,2]
[404351570,1770071446283,-540.92,0.00013698,2]
[404351571,1770071446292,-540.92,0.00013698,2]
[404351572,1770071446301,-540.92,0.00013698,2]
[404351573,1770071446311,-540.92,0.00013698,2]
[404351574,1770071446320,-540.92,0.00013698,2]
[404351575,1770071446329,-540.92,0.00013698,2]
[404351576,1770071446338,-540.92,0.00013698,2]
[404351577,1770071446347,-540.92,0.00013698,2]
[404351578,1770071446356,-540.92,0.00013698,2]
[404351579,1770071446365,-540.92,0.00013698,2]
[404351580,1770071446374,-541.05728677,0.00013698,2]
[404351581,1770071446383,-6317.2,0.00013699,2]
[404351582,1770071446391,-272.51,0.00013699,2]
[404351583,1770071446400,-227.09,0.00013699,2]
[404351584,1770071446409,-189.24,0.00013699,2]
[404351585,1770071446418,-157.7,0.00013699,2]
[404351586,1770071446427,-788.53,0.00013699,2]
[404351587,1770071446436,-151.0,0.00013699,2]
[404351588,1770071446445,-151.0,0.00013699,2]
[404351589,1770071446454,-2789.24,0.00013699,2]
[404351591,1770071446463,-151.0,0.000137,2]
[404351592,1770071446472,-850.82,0.0001375,2]
[404351593,1770071446481,-2245.23080824,0.0001377,2]
[404351594,1770071446490,-14576.09983624,0.0001377,2]
[404351595,1770071446499,-200.0,0.00013836,2]
[404351596,1770071446509,-500.0,0.00013836,2]
[404351597,1770071446518,-1152.0,0.00013968,2]
[404351598,1770071446526,-4609.0,0.00013968,2]
[404351599,1770071446535,-1029.0,0.00013968,2]
[404351600,1770071446544,-164.14571343,0.00013973,2]
[404351601,1770071446553,-168.13382401,0.00013973,2]
[404351602,1770071446562,-500.0,0.00013973,2]
[404351603,1770071446571,-500.0,0.00013973,2]
[404351604,1770071446581,-569.16951839,0.00013973,2]
[404351605,1770071446595,-500.0,0.00013973,2]
[404351606,1770071446605,-162.53028247,0.00013973,2]
[404351607,1770071446613,-225.36065254,0.00013973,2]
[404351608,1770071446622,-500.0,0.00013973,2]
[404351609,1770071446631,-500.0,0.00013973,2]
[404351610,1770071446640,-175.91942146,0.00013973,2]
[404351611,1770071446649,-500.94761523,0.00013973,2]
[404351612,1770071446659,-500.0,0.00013973,2]
[404351613,1770071446668,-164.70227396,0.00013973,2]
[404351614,1770071446677,-500.0,0.00013973,2]
[404351615,1770071446686,-500.0,0.00013973,2]
[404351616,1770071446695,-170.36367963,0.00013973,2]
[404351617,1770071446704,-541.62569807,0.00013973,2]
[404351618,1770071446713,-500.0,0.00013973,2]
[404351619,1770071446722,-500.0,0.00013973,2]
[404351620,1770071446731,-500.0,0.00013973,2]
[404351621,1770071446740,-500.0,0.00013973,2]
[404351622,1770071446749,-490.75391952,0.00013973,2]
[404351623,1770071446758,-500.0,0.00013973,2]
[404351624,1770071446767,-163.07853281,0.00013973,2]
[404351625,1770071446776,-500.0,0.00013973,2]
[404351626,1770071446785,-500.0,0.00013973,2]
[404351627,1770071446794,-500.0,0.00013973,2]
[404351628,1770071446803,-500.0,0.00013973,2]
[404351629,1770071446812,-500.0,0.00013973,2]
[404351630,1770071446821,-500.0,0.00013973,2]
[404351631,1770071446830,-500.0,0.00013973,2]
[404351632,1770071446839,-500.0,0.00013973,2]
[404351633,1770071446848,-500.0,0.00013973,2]
[404351634,1770071446857,-500.0,0.00013973,2]
[404351635,1770071446866,-500.0,0.00013973,2]
[404351636,1770071446875,-500.0,0.00013973,2]
[404351637,1770071446883,-163.90719075,0.00013973,2]
[404351638,1770071446892,-500.0,0.00013973,2]
[404351639,1770071446902,-460.07091613,0.00013973,2]
[404351640,1770071446911,-500.0,0.00013973,2]
[404351641,1770071446920,-500.0,0.00013973,2]
[404351642,1770071446929,-500.0,0.00013973,2]
[404351643,1770071446939,-500.0,0.00013973,2]
[404351644,1770071446947,-850.82,0.00014024,2]
[404351645,1770071446957,-1252.0,0.00014112,2]
[404351646,1770071446966,-225.18697532,0.00014125,2]
[404351647,1770071446974,-1536.04360649,0.00014125,2]
[404351648,1770071446983,-230.16041742,0.00014125,2]
[404351649,1770071446992,-187.78006525,0.00014125,2]
[404351650,1770071447001,-44950.45508119,0.00014156,2]
[404351651,1770071447011,-850.82,0.00014298,2]
[404351652,1770071447020,-6317.2,0.00014384,2]
[404351653,1770071447029,-200.0,0.00014384,2]
[404351654,1770071447038,-500.0,0.00014384,2]
[404351655,1770071447047,-10331.11610173,0.0001439,2]
[404351656,1770071447056,-334.5472959,0.00014398,2]
[404351657,1770071447065,-1000.0,0.00014521,2]
[404351658,1770071447074,-1000.0,0.00014521,2]
[404351659,1770071447083,-1000.0,0.00014521,2]
[404351660,1770071447092,-1000.0,0.00014521,2]
[404351661,1770071447102,-545.34481126,0.00014521,2]
[404351662,1770071447111,-543.53042842,0.00014521,2]
[404351663,1770071447120,-1000.0,0.00014521,2]
[404351664,1770071447130,-1000.0,0.00014521,2]
[404351665,1770071447139,-1000.0,0.00014521,2]
[404351666,1770071447148,-1046.2635897,0.00014521,2]
[404351667,1770071447157,-1000.0,0.00014521,2]
[404351668,1770071447166,-1000.0,0.00014521,2]
[404351669,1770071447175,-156.95111861,0.00014521,2]
[404351670,1770071447185,-1000.0,0.00014521,2]
[404351671,1770071447193,-181.57502123,0.00014521,2]
[404351672,1770071447202,-1000.0,0.00014521,2]
[404351673,1770071447212,-259.40505883,0.00014521,2]
[404351674,1770071447222,-1000.0,0.00014521,2]
[404351675,1770071447231,-1000.0,0.00014521,2]
[404351676,1770071447240,-1005.56383771,0.00014521,2]
[404351677,1770071447249,-1000.0,0.00014521,2]
[404351678,1770071447260,-1000.0,0.00014521,2]
[404351679,1770071447269,-1000.0,0.00014521,2]
[404351680,1770071447279,-1000.0,0.00014521,2]
[404351681,1770071447288,-1000.0,0.00014521,2]
[404351682,1770071447297,-1000.0,0.00014521,2]
[404351683,1770071447306,-652.81544497,0.00014521,2]
[404351684,1770071447315,-1000.0,0.00014521,2]
[404351685,1770071447325,-850.82,0.00014572,2]
[404351686,1770071447335,-1600.0,0.00014589,2]
[404351687,1770071447344,-233.51889341,0.00014673,2]
[404351688,1770071447353,-1592.87721993,0.00014673,2]
[404351689,1770071447362,-194.72792766,0.00014673,2]
[404351690,1770071447371,-850.82,0.00014845,2]
[404351691,1770071447381,-370.39,0.00014851,2]
[404351692,1770071447390,-179.5507367,0.000149,2]
[404351693,1770071447399,-200.0,0.00014932,2]
[404351694,1770071447408,-500.0,0.00014932,2]
[404351695,1770071447418,-213.14,0.00014994,2]
[404351696,1770071447427,-1186.16205934,0.00015,2]
[404351697,1770071447436,-2140.76085253,0.00015,14]
[404351698,1770071447445,-6770.64481546,0.00015,2]
[404351699,1770071447454,-369988.95313789,0.00015,3]
[404351700,1770071447463,-29378.89718232,0.00015,2]
[404351701,1770071447473,-418.0702292,0.00015,2]
[404351702,1770071447482,-219.544,0.00015,2]
[404351703,1770071447491,-5807.55946705,0.00015062,2]
[404351704,1770071447501,-15326.24131812,0.00015062,2]
[404351705,1770071447510,-27037.30636258,0.00015062,2]
[404351706,1770071447520,-151.0,0.00015062,2]
[404351707,1770071447529,-151.0,0.00015062,2]
[404351708,1770071447538,-167.02189,0.00015062,2]
[404351709,1770071447547,-167.02189,0.00015062,2]
[404351710,1770071447556,-167.02189,0.00015062,2]
[404351711,1770071447565,-167.02189,0.00015062,2]
[404351712,1770071447574,-1506.79391477,0.00015068,2]
[404351713,1770071447586,-1500.0,0.00015068,2]
[404351714,1770071447596,-1500.0,0.00015068,2]
[404351715,1770071447606,-1500.0,0.00015068,2]
[404351716,1770071447615,-1500.0,0.00015068,2]
[404351717,1770071447625,-726.83579927,0.00015068,2]
[404351718,1770071447634,-1500.0,0.00015068,2]
[404351719,1770071447643,-1500.0,0.00015068,2]
[404351720,1770071447654,-1500.0,0.00015068,2]
[404351721,1770071447663,-1050.7159852,0.00015068,2]
[404351722,1770071447672,-1500.0,0.00015068,2]
[404351723,1770071447682,-503.2603763,0.00015068,2]
[404351724,1770071447691,-1539.34306558,0.00015068,2]
[404351725,1770071447701,-501.69360348,0.00015068,2]
[404351726,1770071447711,-1500.0,0.00015068,2]
[404351727,1770071447720,-1500.0,0.00015068,2]
[404351728,1770071447730,-1500.0,0.00015068,2]
[404351729,1770071447739,-411.8365552,0.00015068,2]
[404351730,1770071447748,-1023.62775042,0.00015068,2]
[404351731,1770071447758,-1500.0,0.00015068,2]
[404351732,1770071447769,-6317.2,0.00015068,2]
[404351733,1770071447781,-837.24894,0.00015068,2]
[404351734,1770071447790,-837.24894,0.00015068,2]
[404351735,1770071447800,-837.24894,0.00015068,2]
[404351736,1770071447811,-837.24894,0.00015068,2]
[404351737,1770071447821,-850.82,0.00015119,2]
[404351738,1770071447832,-1134.47108642,0.00015164,2]
[404351739,1770071447844,-1945.20597247,0.00015164,2]
[404351740,1770071447853,-242.15909246,0.00015221,2]
[404351741,1770071447865,-1651.81367706,0.00015221,2]
[404351742,1770071447877,-201.93286099,0.00015221,2]
[404351743,1770071447887,-1517.64,0.000153,2]
[404351744,1770071447897,-1613.0,0.00015364,2]
[404351745,1770071447907,-6453.0,0.00015364,2]
[404351746,1770071447916,-850.82,0.00015393,2]
[404351747,1770071447926,-508.63384765,0.000154,2]
[404351748,1770071447936,-500.63586771,0.00015473,2]
[404351749,1770071447947,-500.46237197,0.00015473,2]
[404351750,1770071447956,-163.34993731,0.00015473,2]
[404351751,1770071447966,-163.12661798,0.00015473,2]
[404351752,1770071447975,-500.0,0.00015473,2]
[404351753,1770071447985,-500.0,0.00015473,2]
[404351754,1770071447994,-500.6120606,0.00015473,2]
[404351755,1770071448004,-500.62768041,0.00015473,2]
[404351756,1770071448013,-500.0,0.00015473,2]
[404351757,1770071448023,-161.45537985,0.00015473,2]
[404351758,1770071448040,-464.35211832,0.00015473,2]
[404351759,1770071448061,-151.07783782,0.00015473,2]
[404351760,1770071448079,-500.0,0.00015473,2]
[404351761,1770071448090,-500.0,0.00015473,2]
[404351762,1770071448100,-160.54295648,0.00015473,2]
[404351763,1770071448111,-500.40906893,0.00015473,2]
[404351764,1770071448120,-500.0,0.00015473,2]
[404351765,1770071448129,-500.0,0.00015473,2]
[404351766,1770071448139,-500.0,0.00015473,2]
[404351767,1770071448148,-500.0,0.00015473,2]
[404351768,1770071448157,-559.67308476,0.00015473,2]
[404351769,1770071448167,-200.70028911,0.00015473,2]
[404351770,1770071448178,-163.46067997,0.00015473,2]
[404351771,1770071448187,-500.0,0.00015473,2]
[404351772,1770071448197,-500.0,0.00015473,2]
[404351773,1770071448207,-500.0,0.00015473,2]
[404351774,1770071448216,-500.0,0.00015473,2]
[404351775,1770071448226,-500.0,0.00015473,2]
[404351776,1770071448235,-500.0,0.00015473,2]
[404351777,1770071448244,-336.43827265,0.00015473,2]
[404351778,1770071448254,-500.0,0.00015473,2]
[404351779,1770071448263,-500.0,0.00015473,2]
[404351780,1770071448272,-500.0,0.00015473,2]
[404351781,1770071448282,-500.0,0.00015473,2]
[404351782,1770071448290,-340.09137446,0.00015473,2]
[404351783,1770071448301,-500.0,0.00015473,2]
[404351784,1770071448310,-500.0,0.00015473,2]
[404351785,1770071448319,-500.0,0.00015473,2]
[404351786,1770071448328,-500.0,0.00015473,2]
[404351787,1770071448339,-574.06272579,0.00015473,2]
[404351788,1770071448348,-500.0,0.00015473,2]
[404351789,1770071448358,-500.0,0.00015473,2]
[404351790,1770071448367,-500.0,0.00015473,2]
[404351791,1770071448376,-500.41005015,0.00015473,2]
[404351792,1770071448385,-500.0,0.00015473,2]
[404351793,1770071448394,-160.61738464,0.00015473,2]
[404351794,1770071448403,-500.0,0.00015473,2]
[404351795,1770071448413,-522.30858015,0.00015473,2]
[404351796,1770071448423,-500.0,0.00015473,2]
[404351797,1770071448432,-500.0,0.00015473,2]
[404351798,1770071448442,-512.94754167,0.00015473,2]
[404351799,1770071448451,-500.0,0.00015473,2]
[404351800,1770071448463,-500.0,0.00015473,2]
[404351801,1770071448484,-500.0,0.00015473,2]
[404351802,1770071448502,-460.30125151,0.00015473,2]
[404351803,1770071448516,-500.0,0.00015473,2]
[404351804,1770071448537,-500.0,0.00015473,2]
[404351805,1770071448559,-500.0,0.00015473,2]
[404351806,1770071448579,-500.0,0.00015473,2]
[404351807,1770071448597,-185.46503654,0.00015473,2]
[404351808,1770071448609,-550.09529227,0.00015473,2]
[404351809,1770071448624,-500.0,0.00015473,2]
[404351810,1770071448635,-500.0,0.00015473,2]
[404351811,1770071448647,-500.0,0.00015473,2]
[404351812,1770071448660,-500.0,0.00015473,2]
[404351813,1770071448673,-500.0,0.00015473,2]
[404351814,1770071448685,-565.00011393,0.00015473,2]
[404351815,1770071448697,-500.0,0.00015473,2]
[404351816,1770071448708,-500.0,0.00015473,2]
[404351817,1770071448721,-168.03217975,0.00015473,2]
[404351818,1770071448731,-500.0,0.00015473,2]
[404351819,1770071448742,-500.0,0.00015473,2]
[404351820,1770071448755,-558.47394043,0.00015473,2]
[404351821,1770071448766,-500.0,0.00015473,2]
[404351822,1770071448777,-500.0,0.00015473,2]
[404351823,1770071448791,-500.0,0.00015473,2]